fUSD/lending_fUSD_20250820
["ID","MTS","AMOUNT","RATE_DAILY","PERIOD"]
[380379755,1755719444086,-413.486481,0.00018533,2]
[380379756,1755719444095,-413.486481,0.00018533,2]
[380379757,1755719444105,-1336.733797,0.00018533,2]
[380379758,1755719444114,-413.486481,0.00018533,2]
[380379759,1755719444124,-1336.733797,0.00018533,2]
[380379760,1755719444133,-413.486481,0.00018533,2]
[380379761,1755719444143,-151.0,0.00018533,2]
[380379762,1755719444152,-239.028548,0.00018533,2]
[380379763,1755719444162,-1336.733797,0.00018533,2]
[380379764,1755719444171,-151.0,0.00018533,2]
[380379765,1755719444181,-239.028548,0.00018533,2]
[380379766,1755719444191,-1336.733797,0.00018533,2]
[380379767,1755719444200,-239.028548,0.00018533,2]
[380379768,1755719444209,-239.028548,0.00018533,2]
[380379769,1755719444218,-245.014136,0.00018533,2]
[380379770,1755719444228,-151.0,0.00018533,2]
[380379771,1755719444237,-245.014136,0.00018533,2]
[380379772,1755719444247,-151.0,0.00018533,2]
[380379773,1755719444256,-245.014136,0.00018533,2]
[380379774,1755719444266,-245.014136,0.00018533,2]
[380379775,1755719444276,-151.0,0.00018533,2]
[380379776,1755719444286,-151.0,0.00018533,2]
[380379777,1755719444295,-182.838418,0.00018533,2]
[380379778,1755719444305,-500.0,0.0001863,2]
[380379779,1755719444314,-6260.34,0.000187,2]
[380379780,1755719444324,-1000.0,0.00018708,2]
[380379781,1755719444334,-1000.0,0.00018708,2]
[380379782,1755719444344,-1000.0,0.00018708,2]
[380379783,1755719444353,-151.0,0.00018746,2]
[380379784,1755719444363,-651.0,0.00018772,2]
[380379785,1755719444373,-150.0,0.000188,2]
[380379786,1755719444383,-5512.0,0.000188,5]
[380379787,1755719444392,-1000.0,0.00018804,2]
[380379788,1755719444401,-1000.0,0.00018804,2]
[380379789,1755719444411,-1000.0,0.00018804,2]
[380379790,1755719444425,-1000.0,0.00018804,2]
[380379791,1755719444435,-936.591142,0.000189,2]
[380379792,1755719444444,-774.14062056,0.000189,2]
[380379793,1755719444454,-500.0,0.00018904,2]
[380379794,1755719444465,-500.0,0.00018973,2]
[380379795,1755719444474,-500.0,0.00018973,2]
[380379796,1755719444484,-500.0,0.00018973,2]
[380379797,1755719444495,-500.0,0.00018973,2]
[380379798,1755719444504,-500.0,0.00018973,2]
[380379799,1755719444516,-500.0,0.00018973,2]
[380379800,1755719444526,-500.0,0.00018973,2]
[380379801,1755719444535,-500.0,0.00018973,2]
[380379802,1755719444545,-500.0,0.00018973,2]
[380379803,1755719444554,-500.0,0.00018973,2]
[380379804,1755719444563,-500.0,0.00018973,2]
[380379805,1755719444573,-500.0,0.00018973,2]
[380379806,1755719444583,-150.0,0.00018981,2]
[380379807,1755719444592,-899.93668257,0.00018982,2]
[380379808,1755719444602,-1146.97812484,0.00018983,2]
[380379809,1755719444611,-1394.01956712,0.00018984,2]
[380379810,1755719444621,-1641.06100939,0.00018985,2]
[380379811,1755719444631,-1888.10245166,0.00018986,2]
[380379812,1755719444640,-2135.14389394,0.00018987,2]
[380379813,1755719444650,-7298.7243729,0.00018987,2]
[380379814,1755719444660,-2382.18533621,0.00018988,2]
[380379815,1755719444669,-2629.22677849,0.00018989,2]
[380379816,1755719444679,-2876.26822076,0.0001899,2]
[380379817,1755719444688,-261.067,0.00018999,2]
[380379818,1755719444698,-705878.71872689,0.00019,2]
[380379819,1755719444707,-151.0,0.00019,2]
[380379820,1755719444717,-151.0,0.00019,2]
[380379821,1755719444726,-151.0,0.00019,2]
[380379822,1755719444736,-194.83782,0.00019,2]
[380379823,1755719444745,-194.83782,0.00019,2]
[380379824,1755719444755,-194.83782,0.00019,2]
[380379825,1755719444767,-194.83782,0.00019,2]
[380379826,1755719444776,-151.0,0.00019,2]
[380379827,1755719444785,-151.0,0.00019,2]
[380379828,1755719444795,-151.0,0.00019,2]
[380379829,1755719444804,-151.0,0.00019,2]
[380379830,1755719444813,-151.0,0.00019,2]
[380379831,1755719444823,-151.0,0.00019,2]
[380379832,1755719444833,-151.0,0.00019,2]
[380379833,1755719444842,-151.0,0.00019,2]
[380379834,1755719444851,-151.0,0.00019,2]
[380379835,1755719444861,-151.0,0.00019,2]
[380379836,1755719444871,-151.0,0.00019,2]
[380379837,1755719444880,-151.0,0.00019,2]
[380379838,1755719444889,-151.0,0.00019,2]
[380379839,1755719444899,-151.0,0.00019,2]
[380379840,1755719444909,-151.0,0.00019,2]
[380379841,1755719444918,-157.958321,0.00019,2]
[380379842,1755719444928,-151.0,0.00019,2]
[380379843,1755719444937,-151.0,0.00019,2]
[380379844,1755719444946,-151.0,0.00019,2]
[380379845,1755719444956,-151.0,0.00019,2]
[380379846,1755719444965,-151.0,0.00019,2]
[380379847,1755719444975,-151.0,0.00019,2]
[380379848,1755719444984,-151.0,0.00019,2]
[380379849,1755719444994,-151.0,0.00019,2]
[380379850,1755719445003,-151.0,0.00019,2]
[380379851,1755719445014,-167.746567,0.00019,2]
[380379852,1755719445024,-291.670427,0.00019,2]
[380379853,1755719445033,-291.670427,0.00019,2]
[380379854,1755719445043,-291.670427,0.00019,2]
[380379855,1755719445053,-291.670427,0.00019,2]
[380379856,1755719445063,-151.0,0.00019,2]
[380379857,1755719445073,-151.0,0.00019,2]
[380379858,1755719445082,-152.307233,0.00019,2]
[380379859,1755719445091,-203.849041,0.00019,2]
[380379860,1755719445101,-203.849041,0.00019,2]
[380379861,1755719445111,-151.0,0.00019,2]
[380379862,1755719445120,-151.0,0.00019,2]
[380379863,1755719445130,-203.849041,0.00019,2]
[380379864,1755719445141,-233.970271,0.00019,2]
[380379865,1755719445150,-151.0,0.00019,2]
[380379866,1755719445160,-233.970271,0.00019,2]
[380379867,1755719445170,-151.0,0.00019,2]
[380379868,1755719445181,-203.849041,0.00019,2]
[380379869,1755719445191,-233.970271,0.00019,2]
[380379870,1755719445200,-233.970271,0.00019,2]
[380379871,1755719445209,-151.0,0.00019,2]
[380379872,1755719445219,-369.758496,0.00019,2]
[380379873,1755719445228,-151.0,0.00019,2]
[380379874,1755719445238,-369.758496,0.00019,2]
[380379875,1755719445248,-151.0,0.00019,2]
[380379876,1755719445257,-369.758496,0.00019,2]
[380379877,1755719445270,-151.0,0.00019,2]
[380379878,1755719445279,-369.758496,0.00019,2]
[380379879,1755719445289,-151.0,0.00019,2]
[380379880,1755719445299,-151.186818,0.00019,2]
[380379881,1755719445309,-151.0,0.00019,2]
[380379882,1755719445319,-151.0,0.00019,2]
[380379883,1755719445328,-151.0,0.00019,2]
[380379884,1755719445338,-185.091279,0.00019,2]
[380379885,1755719445347,-151.0,0.00019,2]
[380379886,1755719445357,-151.0,0.00019,2]
[380379887,1755719445367,-185.091279,0.00019,2]
[380379888,1755719445377,-275.910648,0.00019,2]
[380379889,1755719445388,-185.091279,0.00019,2]
[380379890,1755719445399,-151.0,0.00019,2]
[380379891,1755719445409,-151.0,0.00019,2]
[380379892,1755719445422,-185.091279,0.00019,2]
[380379893,1755719445431,-151.0,0.00019,2]
[380379894,1755719445442,-151.0,0.00019,2]
[380379895,1755719445451,-669.701929,0.00019,2]
[380379896,1755719445462,-669.701929,0.00019,2]
[380379897,1755719445471,-1384.408803,0.00019,2]
[380379898,1755719445483,-669.701929,0.00019,2]
[380379899,1755719445493,-1384.408803,0.00019,2]
[380379900,1755719445502,-669.701929,0.00019,2]
[380379901,1755719445512,-154.249362,0.00019,2]
[380379902,1755719445522,-1384.408803,0.00019,2]
[380379903,1755719445531,-154.249362,0.00019,2]
[380379904,1755719445542,-1384.408803,0.00019,2]
[380379905,1755719445551,-154.249362,0.00019,2]
[380379906,1755719445561,-154.249362,0.00019,2]
[380379907,1755719445570,-151.0,0.00019,2]
[380379908,1755719445580,-151.0,0.00019,2]
[380379909,1755719445590,-151.0,0.00019,2]
[380379910,1755719445600,-238.04437,0.00019,2]
[380379911,1755719445610,-238.04437,0.00019,2]
[380379912,1755719445619,-197.186372,0.00019,2]
[380379913,1755719445628,-238.04437,0.00019,2]
[380379914,1755719445638,-197.186372,0.00019,2]
[380379915,1755719445647,-238.04437,0.00019,2]
[380379916,1755719445656,-197.186372,0.00019,2]
[380379917,1755719445666,-180.552561,0.00019,2]
[380379918,1755719445676,-151.0,0.00019,2]
[380379919,1755719445685,-151.471231,0.00019,2]
[380379920,1755719445695,-151.0,0.00019,2]
[380379922,1755719445704,-197.186372,0.00019,2]
[380379923,1755719445714,-180.552561,0.00019,2]
[380379924,1755719445723,-151.0,0.00019,2]
[380379925,1755719445733,-180.552561,0.00019,2]
[380379926,1755719445742,-180.552561,0.00019,2]
[380379927,1755719445752,-151.0,0.00019,2]
[380379929,1755719445915,-367.403769,0.00019,2]
[380379930,1755719445926,-151.0,0.00019,2]
[380379931,1755719445936,-151.0,0.00019,2]
[380379932,1755719445946,-151.0,0.00019,2]
[380379933,1755719445957,-367.403769,0.00019,2]
[380379934,1755719445966,-151.995471,0.00019,2]
[380379935,1755719445975,-151.0,0.00019,2]
[380379936,1755719445985,-151.0,0.00019,2]
[380379937,1755719445994,-367.403769,0.00019,2]
[380379938,1755719446004,-367.403769,0.00019,2]
[380379939,1755719446014,-151.0,0.00019,2]
[380379940,1755719446023,-178.960945,0.00019,2]
[380379941,1755719446032,-275.92494,0.00019,2]
[380379942,1755719446042,-275.92494,0.00019,2]
[380379943,1755719446051,-275.92494,0.00019,2]
[380379944,1755719446060,-275.92494,0.00019,2]
[380379945,1755719446070,-151.0,0.00019,2]
[380379946,1755719446079,-151.0,0.00019,2]
[380379947,1755719446088,-226.396205,0.00019,2]
[380379948,1755719446097,-226.396205,0.00019,2]
[380379949,1755719446107,-226.396205,0.00019,2]
[380379950,1755719446116,-226.396205,0.00019,2]
[380379951,1755719446125,-151.0,0.00019,2]
[380379952,1755719446134,-166.082101,0.00019,2]
[380379953,1755719446144,-151.0,0.00019,2]
[380379954,1755719446153,-151.0,0.00019,2]
[380379955,1755719446162,-151.0,0.00019,2]
[380379956,1755719446171,-166.082101,0.00019,2]
[380379957,1755719446180,-151.0,0.00019,2]
[380379958,1755719446189,-151.0,0.00019,2]
[380379959,1755719446198,-166.082101,0.00019,2]
[380379960,1755719446207,-166.082101,0.00019,2]
[380379961,1755719446216,-151.0,0.00019,2]
[380379962,1755719446226,-151.0,0.00019,2]
[380379963,1755719446235,-151.0,0.00019,2]
[380379964,1755719446244,-151.0,0.00019,2]
[380379965,1755719446255,-309.066525,0.00019,2]
[380379966,1755719446265,-309.066525,0.00019,2]
[380379967,1755719446274,-239.738135,0.00019,2]
[380379968,1755719446284,-309.066525,0.00019,2]
[380379969,1755719446294,-309.066525,0.00019,2]
[380379970,1755719446303,-151.0,0.00019,2]
[380379971,1755719446312,-151.0,0.00019,2]
[380379972,1755719446321,-413.486481,0.00019,2]
[380379973,1755719446330,-413.486481,0.00019,2]
[380379974,1755719446340,-1336.733797,0.00019,2]
[380379975,1755719446349,-413.486481,0.00019,2]
[380379976,1755719446359,-1336.733797,0.00019,2]
[380379977,1755719446368,-413.486481,0.00019,2]
[380379978,1755719446377,-151.0,0.00019,2]
[380379979,1755719446387,-239.028548,0.00019,2]
[380379980,1755719446396,-1336.733797,0.00019,2]
[380379981,1755719446406,-151.0,0.00019,2]
[380379982,1755719446417,-239.028548,0.00019,2]
[380379983,1755719446430,-239.028548,0.00019,2]
[380379984,1755719446440,-239.028548,0.00019,2]
[380379985,1755719446450,-245.014136,0.00019,2]
[380379986,1755719446460,-151.0,0.00019,2]
[380379987,1755719446469,-245.014136,0.00019,2]
[380379988,1755719446479,-151.0,0.00019,2]
[380379989,1755719446488,-245.014136,0.00019,2]
[380379990,1755719446500,-1056.074189,0.00019,2]
[380379991,1755719446514,-245.014136,0.00019,2]
[380379992,1755719446523,-151.0,0.00019,2]
[380379993,1755719446533,-1056.074189,0.00019,2]
[380379994,1755719446542,-279.624827,0.00019,2]
[380379995,1755719446551,-151.0,0.00019,2]
[380379996,1755719446560,-1056.074189,0.00019,2]
[380379997,1755719446569,-1336.733797,0.00019,2]
[380379998,1755719446578,-151.0,0.00019,2]
[380379999,1755719446588,-279.624827,0.00019,2]
[380380000,1755719446597,-151.0,0.00019,2]
[380380001,1755719446606,-1056.074189,0.00019,2]
[380380002,1755719446615,-205.947747,0.00019,2]
[380380003,1755719446623,-151.0,0.00019,2]
[380380004,1755719446632,-279.624827,0.00019,2]
[380380005,1755719446642,-205.947747,0.00019,2]
[380380006,1755719446651,-151.0,0.00019,2]
[380380007,1755719446660,-279.624827,0.00019,2]
[380380008,1755719446669,-205.947747,0.00019,2]
[380380009,1755719446679,-205.947747,0.00019,2]
[380380010,1755719446687,-151.0,0.00019,2]
[380380011,1755719446696,-310.961919,0.00019,2]
[380380012,1755719446705,-151.0,0.00019,2]
[380380013,1755719446714,-310.961919,0.00019,2]
[380380014,1755719446723,-310.961919,0.00019,2]
[380380015,1755719446732,-310.961919,0.00019,2]
[380380016,1755719446741,-151.0,0.00019,2]
[380380017,1755719446750,-151.0,0.00019,2]
[380380018,1755719446761,-151.0,0.00019,2]
[380380019,1755719446770,-151.0,0.00019,2]
[380380020,1755719446780,-151.0,0.00019,2]
[380380021,1755719446789,-209.006886,0.00019,2]
[380380022,1755719446798,-209.006886,0.00019,2]
[380380023,1755719446807,-209.006886,0.00019,2]
[380380024,1755719446816,-128320.82,0.00019,2]
[380380025,1755719446825,-209.006886,0.00019,2]
[380380026,1755719446834,-151.0,0.00019,2]
[380380027,1755719446843,-302.859373,0.00019,2]
[380380028,1755719446852,-153.907366,0.00019,2]
[380380029,1755719446862,-151.0,0.00019,2]
[380380030,1755719446871,-420.120718,0.00019,2]
[380380031,1755719446880,-302.859373,0.00019,2]
[380380032,1755719446890,-151.0,0.00019,2]
[380380033,1755719446899,-420.120718,0.00019,2]
[380380034,1755719446908,-302.859373,0.00019,2]
[380380035,1755719446917,-151.0,0.00019,2]
[380380036,1755719446926,-151.0,0.00019,2]
[380380037,1755719446935,-420.120718,0.00019,2]
[380380038,1755719446944,-302.859373,0.00019,2]
[380380039,1755719446954,-420.120718,0.00019,2]
[380380040,1755719446963,-238.260252,0.00019,2]
[380380041,1755719446972,-238.260252,0.00019,2]
[380380042,1755719446982,-238.260252,0.00019,2]
[380380043,1755719446991,-151.0,0.00019,2]
[380380044,1755719446999,-238.260252,0.00019,2]
[380380045,1755719447008,-151.0,0.00019,2]
[380380046,1755719447018,-151.0,0.00019,2]
[380380047,1755719447028,-151.0,0.00019,2]
[380380048,1755719447037,-151.0,0.00019,2]
[380380049,1755719447046,-151.0,0.00019,2]
[380380050,1755719447055,-151.0,0.00019,2]
[380380051,1755719447064,-151.0,0.00019,2]
[380380052,1755719447073,-151.0,0.00019,2]
[380380053,1755719447082,-151.0,0.00019,2]
[380380054,1755719447091,-151.0,0.00019,2]
[380380055,1755719447100,-151.0,0.00019,2]
[380380056,1755719447110,-275.187179,0.00019,2]
[380380057,1755719447121,-275.187179,0.00019,2]
[380380058,1755719447130,-275.187179,0.00019,2]
[380380059,1755719447139,-275.187179,0.00019,2]
[380380060,1755719447149,-151.0,0.00019,2]
[380380061,1755719447158,-151.0,0.00019,2]
[380380062,1755719447167,-4940.116629,0.00019,2]
[380380063,1755719447177,-151.0,0.00019,2]
[380380064,1755719447186,-4940.116629,0.00019,2]
[380380065,1755719447195,-232.086826,0.00019,2]
[380380066,1755719447204,-4940.116629,0.00019,2]
[380380067,1755719447213,-232.086826,0.00019,2]
[380380068,1755719447222,-151.0,0.00019,2]
[380380069,1755719447231,-4940.116629,0.00019,2]
[380380070,1755719447240,-151.0,0.00019,2]
[380380071,1755719447249,-232.086826,0.00019,2]
[380380072,1755719447258,-260.149422,0.00019,2]
[380380073,1755719447269,-232.086826,0.00019,2]
[380380074,1755719447279,-276.684377,0.00019,2]
[380380075,1755719447288,-260.149422,0.00019,2]
[380380076,1755719447297,-260.149422,0.00019,2]
[380380077,1755719447307,-419.208787,0.00019,2]
[380380078,1755719447316,-151.0,0.00019,2]
[380380079,1755719447325,-260.149422,0.00019,2]
[380380080,1755719447334,-419.208787,0.00019,2]
[380380081,1755719447343,-199.468882,0.00019,2]
[380380082,1755719447353,-151.0,0.00019,2]
[380380083,1755719447362,-199.687516,0.00019,2]
[380380084,1755719447371,-419.208787,0.00019,2]
[380380085,1755719447380,-199.468882,0.00019,2]
[380380086,1755719447389,-151.0,0.00019,2]
[380380087,1755719447399,-244.627955,0.00019,2]
[380380088,1755719447409,-199.687516,0.00019,2]
[380380089,1755719447423,-419.208787,0.00019,2]
[380380090,1755719447432,-199.468882,0.00019,2]
[380380091,1755719447441,-199.687516,0.00019,2]
[380380092,1755719447450,-199.468882,0.00019,2]
[380380093,1755719447459,-199.687516,0.00019,2]
[380380094,1755719447468,-151.0,0.00019,2]
[380380095,1755719447477,-151.0,0.00019,2]
[380380096,1755719447486,-199.663246,0.00019,2]
[380380097,1755719447498,-3381.22899,0.00019,2]
[380380098,1755719447508,-199.663246,0.00019,2]
[380380099,1755719447518,-199.663246,0.00019,2]
[380380100,1755719447527,-199.663246,0.00019,2]
[380380101,1755719447536,-151.0,0.00019,2]
[380380102,1755719447545,-151.0,0.00019,2]
[380380103,1755719447555,-151.0,0.00019,2]
[380380104,1755719447564,-151.0,0.00019,2]
[380380105,1755719447573,-151.0,0.00019,2]
[380380106,1755719447582,-151.0,0.00019,2]
[380380107,1755719447591,-151.0,0.00019,2]
[380380108,1755719447601,-151.0,0.00019,2]
[380380109,1755719447610,-234.321984,0.00019,2]
[380380110,1755719447619,-151.0,0.00019,2]
[380380111,1755719447628,-151.0,0.00019,2]
[380380112,1755719447638,-151.0,0.00019,2]
[380380113,1755719447647,-151.0,0.00019,2]
[380380114,1755719447656,-151.0,0.00019,2]
[380380115,1755719447665,-151.0,0.00019,2]
[380380116,1755719447674,-151.0,0.00019,2]
[380380117,1755719447684,-151.0,0.00019,2]
[380380118,1755719447693,-151.0,0.00019,2]
[380380119,1755719447702,-151.0,0.00019,2]
[380380120,1755719447711,-226.341115,0.00019,2]
[380380121,1755719447720,-151.0,0.00019,2]
[380380122,1755719447729,-151.0,0.00019,2]
[380380123,1755719447738,-226.341115,0.00019,2]
[380380124,1755719447747,-170.931532,0.00019,2]
[380380125,1755719447756,-306.52494,0.00019,2]
[380380126,1755719447766,-151.0,0.00019,2]
[380380127,1755719447775,-151.0,0.00019,2]
[380380128,1755719447785,-226.341115,0.00019,2]
[380380129,1755719447794,-151.0,0.00019,2]
[380380130,1755719447803,-174.220456,0.00019,2]
[380380131,1755719447812,-306.52494,0.00019,2]
[380380132,1755719447822,-226.341115,0.00019,2]
[380380133,1755719447831,-158.035399,0.00019,2]
[380380134,1755719447840,-306.52494,0.00019,2]
[380380135,1755719447849,-306.52494,0.00019,2]
[380380136,1755719447858,-328.680616,0.00019,2]
[380380137,1755719447867,-328.680616,0.00019,2]
[380380138,1755719447876,-151.0,0.00019,2]
[380380139,1755719447885,-328.680616,0.00019,2]
[380380140,1755719447894,-151.0,0.00019,2]
[380380141,1755719447903,-328.680616,0.00019,2]
[380380142,1755719447913,-151.0,0.00019,2]
[380380143,1755719447922,-151.0,0.00019,2]
[380380144,1755719447932,-1381.597501,0.00019,2]
[380380145,1755719447941,-1381.597501,0.00019,2]
[380380146,1755719447951,-1381.597501,0.00019,2]
[380380147,1755719447960,-1381.597501,0.00019,2]
[380380148,1755719447970,-301.787056,0.00019,2]
[380380149,1755719447979,-301.787056,0.00019,2]
[380380150,1755719447989,-301.787056,0.00019,2]
[380380151,1755719447998,-301.787056,0.00019,2]
[380380152,1755719448007,-182.730724,0.00019,2]
[380380153,1755719448017,-151.0,0.00019,2]
[380380154,1755719448026,-151.0,0.00019,2]
[380380155,1755719448036,-182.730724,0.00019,2]
[380380156,1755719448045,-185.810883,0.00019,2]
[380380157,1755719448056,-151.0,0.00019,2]
[380380158,1755719448065,-151.0,0.00019,2]
[380380159,1755719448076,-151.0,0.00019,2]
[380380160,1755719448085,-182.730724,0.00019,2]
[380380161,1755719448094,-340.375925,0.00019,2]
[380380162,1755719448104,-151.0,0.00019,2]
[380380163,1755719448113,-151.0,0.00019,2]
[380380165,1755719448124,-340.375925,0.00019,2]
[380380166,1755719448133,-151.0,0.00019,2]
[380380167,1755719448142,-151.0,0.00019,2]
[380380168,1755719448152,-340.375925,0.00019,2]
[380380169,1755719448161,-151.0,0.00019,2]
[380380170,1755719448170,-151.0,0.00019,2]
[380380171,1755719448180,-151.0,0.00019,2]
[380380172,1755719448190,-340.375925,0.00019,2]
[380380173,1755719448200,-151.0,0.00019,2]
[380380174,1755719448209,-264.299822,0.00019,2]
[380380175,1755719448220,-203.357685,0.00019,2]
[380380176,1755719448230,-500.0,0.00019178,2]
[380380177,1755719448241,-450.0,0.00019178,6]
[380380178,1755719448250,-151.0,0.00019178,2]
[380380179,1755719448263,-2000.0,0.000192,2]
[380380180,1755719448273,-1500.0,0.00019256,2]
[380380181,1755719448283,-1500.0,0.00019256,2]
[380380182,1755719448293,-1500.0,0.00019256,2]
[380380183,1755719448303,-1000.0,0.00019338,2]
[380380184,1755719448314,-150.99,0.00019339,2]
[380380185,1755719448326,-1602.99012364,0.00019351,2]
[380380186,1755719448337,-1500.0,0.00019351,2]
[380380187,1755719448347,-1500.0,0.00019351,2]
[380380188,1755719448357,-1500.0,0.00019351,2]
[380380189,1755719448368,-500.0,0.00019452,2]
[380380190,1755719448378,-243.67560252,0.00019456,2]
[380380191,1755719448387,-151.0,0.00019515,2]
[380380193,1755719448397,-1000.0,0.00019521,2]
[380380194,1755719448407,-1000.0,0.00019521,2]
[380380195,1755719448419,-1000.0,0.00019521,2]
[380380196,1755719448429,-1000.0,0.00019521,2]
[380380197,1755719448438,-1000.0,0.00019521,2]
[380380198,1755719448447,-1000.0,0.00019521,2]
[380380199,1755719448456,-1000.0,0.00019521,2]
[380380200,1755719448466,-150.00000001,0.00019701,4]
[380380201,1755719448476,-153.0358793,0.00019701,4]
[380380202,1755719448485,-150.0,0.00019701,4]
[380380203,1755719448497,-150.0,0.00019701,4]
[380380204,1755719448507,-150.0,0.00019701,4]
[380380205,1755719448517,-150.0,0.00019701,4]
[380380206,1755719448526,-150.0,0.00019701,4]
[380380207,1755719448536,-150.0,0.00019701,4]
[380380208,1755719448546,-150.27475247,0.00019701,4]
[380380210,1755719448555,-150.0,0.00019701,4]
[380380211,1755719448564,-150.0,0.00019701,4]
[380380212,1755719448574,-150.0,0.00019701,4]
[380380213,1755719448584,-150.0,0.00019701,4]
[380380214,1755719448593,-150.0,0.00019701,4]
[380380215,1755719448603,-150.0,0.00019701,4]
[380380216,1755719448611,-153.0358793,0.00019723,4]
[380380217,1755719448621,-450.06902607,0.00019726,2]
[380380218,1755719448630,-186.17391265,0.00019726,2]
[380380219,1755719448639,-150.0,0.00019739,4]
[380380220,1755719448648,-153.0358793,0.00019746,4]
[380380221,1755719448658,-150.0,0.00019756,4]
[380380222,1755719448667,-150.0,0.00019762,4]
[380380223,1755719448677,-150.0,0.00019766,4]
[380380224,1755719448686,-153.0358793,0.00019768,4]
[380380225,1755719448695,-150.0,0.0001977,4]
[380380226,1755719448704,-1000.0,0.00019775,2]
[380380227,1755719448713,-1000.0,0.00019775,2]
[380380228,1755719448723,-150.0,0.00019777,4]
[380380229,1755719448733,-150.0,0.00019782,4]
[380380230,1755719448742,-153.0358793,0.0001979,4]
[380380231,1755719448751,-150.0,0.00019801,4]
[380380232,1755719448760,-2000.0,0.00019804,2]
[380380233,1755719448770,-2000.0,0.00019804,2]
[380380234,1755719448780,-2000.0,0.00019804,2]
[380380235,1755719448788,-150.0,0.00019806,4]
[380380236,1755719448797,-150.0,0.00019811,4]
[380380237,1755719448807,-153.0358793,0.00019812,4]
[380380238,1755719448815,-150.0,0.00019815,4]
[380380239,1755719448825,-150.0,0.00019823,4]
[380380240,1755719448834,-150.0,0.00019823,4]
[380380241,1755719448843,-150.0,0.0001983,4]
[380380242,1755719448853,-153.0358793,0.00019834,4]
[380380243,1755719448863,-150.0,0.00019838,4]
[380380244,1755719448872,-150.0,0.00019852,4]
[380380245,1755719448881,-153.0358793,0.00019856,4]
[380380247,1755719448890,-186.91,0.00019863,2]
[380380248,1755719448900,-150.0,0.00019864,4]
[380380249,1755719448909,-150.0,0.00019866,4]
[380380250,1755719448918,-153.0358793,0.00019878,4]
[380380251,1755719448928,-150.0,0.00019884,4]
[380380252,1755719448937,-150.0,0.0001989,4]
[380380253,1755719448947,-150.0,0.00019895,4]
[380380254,1755719448957,-414.80833616,0.00019899,2]
[380380255,1755719448966,-1716.15902767,0.00019899,2]
[380380256,1755719448975,-2000.0,0.00019899,2]
[380380257,1755719448985,-4820.13124941,0.000199,3]
[380380259,1755719448994,-153.0358793,0.000199,4]
[380380260,1755719449003,-150.0,0.000199,4]
[380380261,1755719449012,-150.0,0.00019907,4]